fUST/lending_fUST_20250608
["ID","MTS","AMOUNT","RATE_DAILY","PERIOD"]
[364931005,1749312043234,1437.38,0.00018972,2]
[364931007,1749312126355,165.642785,0.00013699,2]
[364931009,1749312135695,1419.09,0.00018823,2]
[364931011,1749312221362,1401.03,0.00018737,2]
[364931012,1749312303173,1383.2,0.00018747,2]
[364931014,1749312386211,1365.59,0.00018743,2]
[364931015,1749312427204,475.6820411,0.000189,2]
[364931016,1749312447164,-2731.18,0.00020447,2]
[364931017,1749312447190,-834.52263295,0.00020492,2]
[364931018,1749312447211,-500.0,0.00020855,2]
[364931019,1749312447235,-666.0,0.00020982,2]
[364931020,1749312447258,-162.26586118,0.00021212,2]
[364931021,1749312447280,-440.0,0.00021248,2]
[364931022,1749312447302,-440.0,0.00021522,2]
[364931023,1749312447325,-207.4,0.00021627,2]
[364931024,1749312447348,-300.0,0.00021639,2]
[364931025,1749312447371,-440.0,0.00021796,2]
[364931026,1749312447394,-150.0,0.000219,2]
[364931027,1749312447416,-161.0,0.00022,2]
[364931028,1749312447439,-440.0,0.0002207,2]
[364931029,1749312447461,-300.0,0.00022149,2]
[364931030,1749312447485,-439.54272735,0.0002215,2]
[364931031,1749312447508,-537.6502835,0.0002215,2]
[364931032,1749312447530,-3777.38335725,0.00022151,2]
[364931033,1749312467147,1265.37,0.00018909,2]
[364931036,1749312548517,1249.27,0.00018856,2]
[364931037,1749312597622,377.187,0.00025479,120]
[364931038,1749312629526,1233.37,0.00018732,2]
[364931065,1749312632099,-809.77192445,0.00020435,2]
[364931067,1749312632112,-333.33273335,0.00020435,2]
[364931087,1749312637978,-813.9530411,0.00020435,2]
[364931119,1749312703909,1111.0,0.00025479,120]
[364931120,1749312713159,1196.69,0.00018789,2]
[364931121,1749312793503,1181.46,0.00018766,2]
[364931122,1749312875036,1166.42,0.00018452,2]
[364931123,1749312955128,1151.57,0.00018477,2]
[364931124,1749313036296,1136.92,0.00018443,2]
[364931125,1749313119155,1122.45,0.00018463,2]
[364931126,1749313178266,-317.12136073,0.00020051,2]
[364931127,1749313178287,-210.3219573,0.00020122,2]
[364931128,1749313178311,-1232.55668197,0.00020141,2]
[364931129,1749313199452,1092.48,0.00018472,2]
[364931133,1749313239957,165.642785,0.00013699,2]
[364931135,1749313280270,1078.57,0.00018434,2]
[364931136,1749313361697,1064.84,0.0001844,2]
[364931138,1749313442792,1051.29,0.0001844,2]
[364931143,1749313527416,1037.91,0.00018462,2]
[364931150,1749313610469,1024.7,0.00018449,2]
[364931151,1749313632287,211.41424049,0.000189,2]
[364931152,1749313635143,-265.260892,0.00020065,2]
[364931153,1749313635167,-2049.4,0.00020126,2]
[364931154,1749313635190,-666.0,0.00020548,2]
[364931155,1749313635212,-834.52263295,0.00020628,2]
[364931156,1749313635234,-373.86547739,0.00020841,2]
[364931157,1749313635256,-500.0,0.00020855,2]
[364931158,1749313635278,-160.0,0.00021003,3]
[364931159,1749313635301,-172.65687876,0.00021087,2]
[364931160,1749313635324,-152.34019882,0.00021089,2]
[364931161,1749313635348,-743.0,0.00021174,2]
[364931162,1749313635370,-300.0,0.00021175,2]
[364931163,1749313635392,-432.40143575,0.00021176,2]
[364931164,1749313635414,-16.2809265,0.00021176,2]
[364931165,1749313690965,985.58,0.00018449,2]
[364931168,1749313718765,71272.46734565,0.00019,20]
[364931172,1749313771381,973.03,0.00018446,2]
[364931219,1749313837055,-547.49027641,0.00019177,4]
[364931220,1749313837066,-1946.07,0.00020123,2]
[364931221,1749313837077,-300.0,0.00020166,2]
[364931222,1749313837086,-24900.0,0.00020167,2]
[364931223,1749313837096,-13115.8358814,0.00020186,2]
[364931224,1749313837106,-834.52263295,0.00020491,2]
[364931225,1749313837117,-500.0,0.00020855,2]
[364931226,1749313837126,-500.0,0.00021174,2]
[364931227,1749313837139,-500.0,0.00021174,2]
[364931228,1749313837150,-213.46525813,0.00021174,2]
[364931229,1749313837160,-189.22558775,0.00021174,2]
[364931230,1749313837171,-440.0,0.00021175,2]
[364931231,1749313837181,-430.0,0.00021175,2]
[364931232,1749313837191,-440.0,0.00021175,2]
[364931233,1749313837201,-5040.56,0.00021175,2]
[364931234,1749313837211,-440.0,0.00021175,2]
[364931235,1749313837221,-440.0,0.00021175,2]
[364931236,1749313837231,-440.0,0.00021175,2]
[364931237,1749313837241,-440.0,0.00021175,2]
[364931238,1749313837251,-440.0,0.00021175,2]
[364931239,1749313837261,-440.0,0.00021175,2]
[364931240,1749313837270,-440.0,0.00021175,2]
[364931241,1749313837280,-440.0,0.00021175,2]
[364931242,1749313837290,-440.0,0.00021175,2]
[364931243,1749313837301,-430.0,0.00021175,2]
[364931244,1749313837311,-440.0,0.00021175,2]
[364931245,1749313837320,-431.81720152,0.00021175,2]
[364931246,1749313837330,-284.78389438,0.00021175,2]
[364931247,1749313837340,-440.0,0.00021175,2]
[364931248,1749313837350,-440.0,0.00021175,2]
[364931249,1749313837360,-440.0,0.00021175,2]
[364931250,1749313837370,-440.0,0.00021175,2]
[364931251,1749313837385,-465.64900028,0.00021175,2]
[364931252,1749313837394,-440.0,0.00021175,2]
[364931253,1749313837404,-430.0,0.00021175,2]
[364931254,1749313837414,-430.0,0.00021175,2]
[364931255,1749313837424,-440.0,0.00021175,2]
[364931256,1749313837434,-430.7358873,0.00021175,2]
[364931257,1749313837444,-430.0,0.00021175,2]
[364931258,1749313837454,-440.0,0.00021175,2]
[364931259,1749313837464,-430.0,0.00021175,2]
[364931260,1749313837473,-1901.0374758,0.00021175,2]
[364931261,1749313837484,-440.0,0.00021176,2]
[364931262,1749313837494,-342.95305357,0.00021176,2]
[364931263,1749313837504,-440.0,0.00021176,2]
[364931264,1749313837513,-500.0,0.00021176,2]
[364931265,1749313837523,-440.0,0.00021176,2]
[364931266,1749313837533,-440.0,0.00021176,2]
[364931267,1749313837543,-500.34171919,0.00021176,2]
[364931268,1749313837554,-440.0,0.00021176,2]
[364931269,1749313837563,-440.0,0.00021176,2]
[364931270,1749313837574,-440.0,0.00021176,2]
[364931271,1749313837584,-12512.94259353,0.00021176,2]
[364931272,1749313837594,-171.9,0.00021179,3]
[364931273,1749313837605,-515.72,0.00021179,3]
[364931274,1749313837614,-440.0,0.00021187,2]
[364931275,1749313837625,-440.0,0.00021187,2]
[364931276,1749313837635,-440.0,0.00021187,2]
[364931277,1749313837645,-440.0,0.00021187,2]
[364931278,1749313837656,-440.0,0.00021187,2]
[364931279,1749313837670,-440.0,0.00021187,2]
[364931280,1749313837684,-440.0,0.00021187,2]
[364931281,1749313837695,-440.0,0.00021187,2]
[364931282,1749313837708,-440.0,0.00021187,2]
[364931283,1749313837719,-430.0,0.00021187,2]
[364931284,1749313837729,-440.0,0.00021187,2]
[364931285,1749313837739,-440.0,0.00021187,2]
[364931287,1749313837750,-440.0,0.00021187,2]
[364931288,1749313837760,-440.0,0.00021187,2]
[364931289,1749313837770,-500.0,0.00021187,2]
[364931291,1749313837780,-500.0,0.00021187,2]
[364931292,1749313837790,-440.0,0.00021187,2]
[364931294,1749313837801,-440.0,0.00021187,2]
[364931295,1749313837811,-440.0,0.00021187,2]
[364931296,1749313837821,-440.0,0.00021187,2]
[364931297,1749313837831,-200.0,0.00021187,10]
[364931298,1749313837841,-200.0,0.00021187,10]
[364931299,1749313837852,-200.0,0.00021187,10]
[364931300,1749313837862,-440.0,0.00021187,2]
[364931301,1749313837872,-349.038245,0.00021187,10]
[364931302,1749313837881,-440.0,0.00021187,2]
[364931303,1749313837891,-440.00000002,0.00021187,2]
[364931304,1749313837906,-440.0,0.00021187,2]
[364931305,1749313837915,-440.0,0.00021187,2]
[364931306,1749313837925,-440.0,0.00021187,2]
[364931307,1749313837935,-440.0,0.00021187,2]
[364931308,1749313837945,-175.886,0.00021188,2]
[364931309,1749313837955,-430.0,0.00021188,2]
[364931310,1749313837965,-440.0,0.00021188,2]
[364931311,1749313837977,-463.65401998,0.00021188,2]
[364931312,1749313837987,-440.0,0.00021188,2]
[364931313,1749313837997,-370.02466814,0.00021188,2]
[364931314,1749313838007,-430.0,0.00021188,2]
[364931321,1749313838019,-440.0,0.00021188,2]
[364931322,1749313838211,-430.0,0.00021188,2]
[364931323,1749313838220,-440.0,0.00021188,2]
[364931324,1749313838230,-440.0,0.00021188,2]
[364931325,1749313838240,-440.0,0.00021188,2]
[364931326,1749313838249,-440.0,0.00021188,2]
[364931327,1749313838259,-440.0,0.00021188,2]
[364931329,1749313838269,-440.0,0.00021188,2]
[364931331,1749313838278,-430.0,0.00021188,2]
[364931333,1749313838288,-440.0,0.00021188,2]
[364931334,1749313838298,-440.0,0.00021188,2]
[364931335,1749313838308,-440.0,0.00021188,2]
[364931336,1749313838317,-440.0,0.00021188,2]
[364931337,1749313838327,-440.0,0.00021188,2]
[364931338,1749313838337,-500.0,0.00021188,2]
[364931339,1749313838346,-500.0,0.00021188,2]
[364931340,1749313838355,-583.55902521,0.00021188,2]
[364931341,1749313838365,-440.0,0.00021188,2]
[364931342,1749313838375,-440.0,0.00021188,2]
[364931343,1749313838384,-467.77561153,0.00021188,2]
[364931344,1749313838394,-440.0,0.00021188,2]
[364931345,1749313838404,-440.0,0.00021188,2]
[364931346,1749313838414,-440.0,0.00021188,2]
[364931347,1749313838424,-440.0,0.00021188,2]
[364931348,1749313838433,-316.32705389,0.00021188,2]
[364931349,1749313838443,-440.0,0.00021188,2]
[364931350,1749313838455,-440.0,0.00021188,2]
[364931351,1749313838464,-440.0,0.00021188,2]
[364931352,1749313838474,-440.0,0.00021188,2]
[364931353,1749313838484,-430.0,0.00021188,2]
[364931354,1749313838494,-430.0,0.00021188,2]
[364931355,1749313838503,-430.0,0.00021188,2]
[364931356,1749313838514,-440.0,0.00021188,2]
[364931357,1749313838524,-440.0,0.00021188,2]
[364931358,1749313838533,-225.42819833,0.00021188,2]
[364931359,1749313838543,-440.0,0.00021188,2]
[364931360,1749313838558,-440.0,0.00021188,2]
[364931361,1749313838568,-440.0,0.00021188,2]
[364931362,1749313838578,-430.0,0.00021188,2]
[364931363,1749313838588,-440.0,0.00021188,2]
[364931364,1749313838598,-440.0,0.00021188,2]
[364931365,1749313838608,-500.0,0.00021188,2]
[364931366,1749313838618,-501.1582838,0.00021188,2]
[364931367,1749313838628,-430.0,0.00021188,2]
[364931368,1749313838638,-430.0,0.00021188,2]
[364931369,1749313838647,-440.0,0.00021188,2]
[364931370,1749313838657,-440.0,0.00021188,2]
[364931371,1749313838667,-400.0,0.00021188,2]
[364931372,1749313838676,-440.0,0.00021188,2]
[364931373,1749313838685,-440.0,0.00021188,2]
[364931374,1749313838694,-440.0,0.00021188,2]
[364931375,1749313838704,-430.0,0.00021188,2]
[364931376,1749313838714,-440.0,0.00021188,2]
[364931377,1749313838723,-430.0,0.00021188,2]
[364931378,1749313838733,-430.0,0.00021188,2]
[364931379,1749313838742,-440.0,0.00021188,2]
[364931380,1749313838751,-570.59918432,0.00021188,2]
[364931381,1749313838761,-440.0,0.00021188,2]
[364931382,1749313838770,-440.0,0.00021188,2]
[364931383,1749313838780,-440.0,0.00021188,2]
[364931384,1749313838790,-432.79574424,0.00021188,2]
[364931385,1749313838800,-440.0,0.00021188,2]
[364931386,1749313838809,-432.72528783,0.00021188,2]
[364931387,1749313838819,-430.0,0.00021188,2]
[364931388,1749313838830,-430.0,0.00021188,2]
[364931389,1749313838839,-440.0,0.00021188,2]
[364931390,1749313838848,-440.0,0.00021188,2]
[364931391,1749313838858,-440.0,0.00021188,2]
[364931392,1749313838868,-400.0,0.00021188,2]
[364931393,1749313838877,-552.774134,0.00021188,2]
[364931394,1749313838888,-276.88396549,0.00021188,2]
[364931395,1749313838898,-431.00901855,0.00021188,2]
[364931396,1749313838908,-440.0,0.00021188,2]
[364931397,1749313838917,-440.0,0.00021188,2]
[364931398,1749313838927,-440.0,0.00021188,2]
[364931399,1749313838937,-416.29435906,0.00021188,2]
[364931400,1749313838947,-431.91988334,0.00021188,2]
[364931401,1749313838958,-430.0,0.00021188,2]
[364931402,1749313838968,-440.0,0.00021188,2]
[364931403,1749313838977,-440.0,0.00021188,2]
[364931404,1749313838988,-440.0,0.00021188,2]
[364931405,1749313838999,-440.0,0.00021188,2]
[364931406,1749313839008,-432.06933431,0.00021188,2]
[364931407,1749313839018,-436.58317014,0.00021188,2]
[364931408,1749313839027,-440.0,0.00021188,2]
[364931409,1749313839036,-440.0,0.00021188,2]
[364931410,1749313839046,-440.0,0.00021188,2]
[364931411,1749313839056,-440.0,0.00021188,2]
[364931412,1749313839066,-440.0,0.00021188,2]
[364931413,1749313839077,-440.0,0.00021188,2]
[364931414,1749313839088,-430.0,0.00021188,2]
[364931415,1749313839099,-430.0,0.00021188,2]
[364931416,1749313839109,-440.0,0.00021188,2]
[364931417,1749313839119,-440.0,0.00021188,2]
[364931418,1749313839130,-440.0,0.00021188,2]
[364931419,1749313839140,-440.0,0.00021188,2]
[364931420,1749313839149,-440.0,0.00021188,2]
[364931421,1749313839159,-440.0,0.00021188,2]
[364931422,1749313839168,-440.0,0.00021188,2]
[364931423,1749313839177,-440.0,0.00021188,2]
[364931424,1749313839186,-440.0,0.00021188,2]
[364931425,1749313839196,-440.0,0.00021188,2]
[364931426,1749313839206,-440.0,0.00021188,2]
[364931427,1749313839216,-440.0,0.00021188,2]
[364931428,1749313839226,-430.0,0.00021188,2]
[364931429,1749313839235,-430.0,0.00021188,2]
[364931430,1749313839245,-430.0,0.00021188,2]
[364931431,1749313839254,-430.0,0.00021188,2]
[364931432,1749313839264,-440.0,0.00021188,2]
[364931433,1749313839273,-440.0,0.00021188,2]
[364931434,1749313839282,-440.0,0.00021188,2]
[364931435,1749313839292,-440.0,0.00021188,2]
[364931436,1749313839302,-440.0,0.00021188,2]
[364931437,1749313839311,-440.0,0.00021188,2]
[364931438,1749313839321,-430.0,0.00021188,2]
[364931439,1749313839331,-440.0,0.00021188,2]
[364931440,1749313839341,-430.0,0.00021188,2]
[364931441,1749313839350,-436.48722184,0.00021188,2]
[364931442,1749313839360,-440.0,0.00021189,2]
[364931443,1749313839370,-440.0,0.00021189,2]
[364931444,1749313839379,-440.0,0.00021189,2]
[364931445,1749313839389,-440.0,0.00021189,2]
[364931446,1749313839398,-440.0,0.00021189,2]
[364931447,1749313839408,-440.0,0.00021189,2]
[364931448,1749313839417,-430.0,0.00021189,2]
[364931449,1749313839427,-440.0,0.00021189,2]
[364931450,1749313839437,-440.0,0.00021189,2]
[364931451,1749313839446,-475.51500222,0.00021189,2]
[364931452,1749313839457,-430.0,0.00021189,2]
[364931453,1749313839466,-440.0,0.00021189,2]
[364931454,1749313839476,-430.8159445,0.00021189,2]
[364931455,1749313839485,-440.0,0.00021189,2]
[364931456,1749313839495,-428.81033719,0.00021189,2]
[364931457,1749313839504,-430.0,0.00021189,2]
[364931458,1749313839514,-440.0,0.00021189,2]
[364931459,1749313839523,-440.0,0.00021189,2]
[364931460,1749313839533,-559.37252558,0.00021189,2]
[364931461,1749313839544,-440.0,0.00021189,2]
[364931462,1749313839554,-440.0,0.00021189,2]
[364931463,1749313839564,-440.0,0.00021189,2]
[364931464,1749313839574,-440.0,0.00021189,2]
[364931465,1749313839583,-440.0,0.00021189,2]
[364931466,1749313839593,-416.82876807,0.00021189,2]
[364931467,1749313839602,-440.0,0.00021189,2]
[364931468,1749313839612,-375.87908355,0.00021189,2]
[364931469,1749313839622,-430.0,0.00021189,2]
[364931470,1749313839631,-430.0,0.00021189,2]
[364931471,1749313839641,-347.22070214,0.00021189,2]
[364931472,1749313839651,-534.88135862,0.00021189,2]
[364931473,1749313839662,-440.0,0.00021189,2]
[364931474,1749313839673,-528.94953731,0.00021189,2]
[364931475,1749313839682,-517.68599041,0.00021189,2]
[364931476,1749313839693,-440.0,0.00021189,2]
[364931477,1749313839704,-440.0,0.00021189,2]
[364931478,1749313839713,-440.0,0.00021189,2]
[364931479,1749313839725,-436.98133384,0.00021189,2]
[364931480,1749313839735,-440.0,0.00021189,2]
[364931481,1749313839747,-431.1115336,0.00021189,2]
[364931482,1749313839757,-440.0,0.00021189,2]
[364931483,1749313839767,-440.0,0.00021189,2]
[364931484,1749313839777,-430.0,0.00021189,2]
[364931485,1749313839788,-440.0,0.00021189,2]
[364931486,1749313839798,-430.0,0.00021189,2]
[364931487,1749313839808,-343.22230058,0.00021189,2]
[364931488,1749313839818,-440.0,0.00021189,2]
[364931489,1749313839828,-430.0,0.00021189,2]
[364931490,1749313839838,-440.0,0.00021189,2]
[364931491,1749313839848,-431.70411064,0.00021189,2]
[364931492,1749313839858,-431.01518832,0.00021189,2]
[364931493,1749313839868,-332.41062033,0.00021189,2]
[364931494,1749313839877,-430.0,0.00021189,2]
[364931495,1749313839887,-440.0,0.00021189,2]
[364931496,1749313839899,-417.86177832,0.00021189,2]
[364931497,1749313839910,-430.0,0.00021189,2]
[364931498,1749313839919,-440.0,0.00021189,2]
[364931499,1749313839930,-430.0,0.00021189,2]
[364931500,1749313839940,-430.0,0.00021189,2]
[364931501,1749313839951,-440.0,0.00021189,2]
[364931502,1749313839960,-430.0,0.00021189,2]
[364931505,1749313839970,-440.0,0.00021189,2]
[364931507,1749313839981,-430.0,0.00021189,2]
[364931508,1749313839991,-440.0,0.00021189,2]
[364931509,1749313840001,-430.0,0.00021189,2]
[364931510,1749313840011,-364.78863411,0.00021189,2]
[364931511,1749313840020,-434.96709773,0.00021189,2]
[364931512,1749313840030,-440.0,0.00021189,2]
[364931513,1749313840041,-440.0,0.00021189,2]
[364931514,1749313840051,-430.0,0.00021189,2]
[364931515,1749313840061,-440.0,0.00021189,2]
[364931516,1749313840071,-440.0,0.00021189,2]
[364931517,1749313840081,-440.0,0.00021189,2]
[364931518,1749313840092,-370.0,0.00021189,2]
[364931519,1749313840102,-433.9319657,0.00021189,2]
[364931520,1749313840111,-440.0,0.00021189,2]
[364931521,1749313840121,-440.0,0.00021189,2]
[364931523,1749313840131,-370.0,0.00021189,2]
[364931525,1749313840141,-440.0,0.00021189,2]
[364931526,1749313840150,-440.0,0.00021189,2]
[364931528,1749313840160,-430.0,0.00021189,2]
[364931530,1749313840170,-440.0,0.00021189,2]
[364931531,1749313840179,-440.0,0.00021189,2]
[364931532,1749313840189,-320.0,0.00021189,2]
[364931533,1749313840198,-430.0,0.00021189,2]
[364931534,1749313840208,-440.0,0.00021189,2]
[364931535,1749313840218,-300.0,0.00021189,2]
[364931536,1749313840228,-430.0,0.00021189,2]
[364931537,1749313840237,-400.96818973,0.00021189,2]
[364931538,1749313840246,-550.98118995,0.00021189,2]
[364931539,1749313840256,-440.0,0.00021189,2]
[364931540,1749313840266,-440.0,0.00021189,2]
[364931541,1749313840275,-236.29443171,0.00021189,2]
[364931543,1749313840284,-440.0,0.00021189,2]
[364931544,1749313840294,-440.0,0.00021189,2]
[364931545,1749313840304,-430.32741836,0.00021189,2]
[364931546,1749313840314,-430.0,0.00021189,2]
[364931547,1749313840324,-440.0,0.00021189,2]
[364931548,1749313840334,-440.0,0.00021189,2]
[364931550,1749313840344,-159.71134693,0.00021189,2]
[364931551,1749313840354,-430.0,0.00021189,2]
[364931552,1749313840364,-440.0,0.00021189,2]
[364931553,1749313840374,-474.75318024,0.00021189,2]
[364931554,1749313840384,-440.0,0.00021189,2]
[364931555,1749313840394,-430.0,0.00021189,2]
[364931557,1749313840405,-430.0,0.00021189,2]
[364931559,1749313840415,-440.0,0.00021189,2]
[364931561,1749313840425,-430.0,0.00021189,2]
[364931562,1749313840434,-440.0,0.00021189,2]
[364931563,1749313840444,-440.0,0.00021189,2]
[364931564,1749313840455,-426.53492805,0.00021189,2]
[364931565,1749313840464,-440.0,0.00021189,2]
[364931566,1749313840474,-430.0,0.00021189,2]
[364931567,1749313840484,-440.0,0.00021189,2]
[364931568,1749313840494,-440.0,0.00021189,2]
[364931569,1749313840504,-440.0,0.00021189,2]
[364931570,1749313840513,-440.0,0.00021189,2]
[364931571,1749313840523,-440.0,0.00021189,2]
[364931572,1749313840533,-440.0,0.00021189,2]
[364931573,1749313840544,-430.0,0.00021189,2]
[364931574,1749313840554,-200.18887765,0.00021189,2]
[364931575,1749313840564,-406.97986081,0.00021189,2]
[364931576,1749313840574,-440.0,0.00021189,2]
[364931577,1749313840584,-440.0,0.00021189,2]
[364931578,1749313840594,-280.03668619,0.00021189,2]
[364931579,1749313840604,-430.65839878,0.00021189,2]
[364931580,1749313840614,-440.0,0.00021189,2]
[364931581,1749313840624,-440.0,0.00021189,2]
[364931582,1749313840635,-420.0,0.00021189,2]
[364931583,1749313840644,-440.0,0.00021189,2]
[364931584,1749313840654,-372.82699897,0.00021189,2]
[364931585,1749313840664,-430.0,0.00021189,2]
[364931586,1749313840674,-430.88754612,0.00021189,2]
[364931587,1749313840684,-430.0,0.00021189,2]
[364931588,1749313840695,-440.0,0.00021189,2]
[364931589,1749313840706,-430.0,0.00021189,2]
[364931590,1749313840716,-307.91795095,0.00021189,2]
[364931591,1749313840727,-440.0,0.00021189,2]
[364931592,1749313840738,-440.48977036,0.00021189,2]
[364931593,1749313840748,-243.81934067,0.00021189,2]
[364931594,1749313840758,-500.0,0.00021189,2]
[364931595,1749313840768,-430.0,0.00021189,2]
[364931596,1749313840778,-430.0,0.00021189,2]
[364931597,1749313840788,-151.0,0.00021189,2]
[364931598,1749313840798,-440.0,0.00021189,2]
[364931599,1749313840808,-430.0,0.00021189,2]
[364931600,1749313840817,-440.0,0.00021189,2]
[364931601,1749313840827,-440.0,0.00021189,2]
[364931602,1749313840837,-430.0,0.00021189,2]
[364931603,1749313840846,-440.0,0.00021189,2]
[364931604,1749313840856,-430.0,0.00021189,2]
[364931605,1749313840866,-430.0,0.00021189,2]
[364931606,1749313840875,-430.0,0.00021189,2]
[364931607,1749313840885,-183.62460969,0.00021189,2]
[364931608,1749313840896,-440.0,0.00021189,2]
[364931609,1749313840907,-430.0,0.00021189,2]
[364931610,1749313840917,-430.0,0.00021189,2]
[364931611,1749313840927,-400.0,0.00021189,2]
[364931612,1749313840936,-430.0,0.00021189,2]
[364931613,1749313840947,-430.0,0.00021189,2]
[364931614,1749313840957,-430.0,0.00021189,2]
[364931615,1749313840966,-299.70809379,0.00021189,2]
[364931616,1749313840976,-430.0,0.00021189,2]
[364931617,1749313840986,-440.0,0.00021189,2]
[364931618,1749313840996,-440.0,0.00021189,2]
[364931619,1749313841006,-210.04088016,0.00021189,2]
[364931620,1749313841015,-500.0,0.00021189,2]
[364931621,1749313841026,-473.17,0.00021189,2]
[364931622,1749313841035,-430.0,0.00021189,2]
[364931623,1749313841045,-564.22081151,0.00021189,2]
[364931624,1749313841055,-430.0,0.00021189,2]
[364931625,1749313841065,-410.0,0.00021189,2]
[364931626,1749313841074,-440.0,0.00021189,2]
[364931627,1749313841084,-440.0,0.00021189,2]
[364931628,1749313841094,-430.0,0.00021189,2]
[364931629,1749313841104,-430.0,0.00021189,2]
[364931630,1749313841114,-430.0,0.00021189,2]
[364931631,1749313841124,-500.0,0.00021189,2]
[364931632,1749313841133,-440.0,0.00021189,2]
[364931633,1749313841143,-431.66729141,0.00021189,2]
[364931634,1749313841152,-151.0,0.00021189,2]
[364931635,1749313841161,-430.0,0.00021189,2]
[364931636,1749313841171,-440.0,0.00021189,2]
[364931637,1749313841180,-430.0,0.00021189,2]
[364931638,1749313841189,-561.66431882,0.00021189,2]
[364931639,1749313841199,-440.0,0.00021189,2]
[364931640,1749313841208,-215.218392,0.00021189,2]
[364931641,1749313841218,-215.218392,0.00021189,2]
[364931642,1749313841227,-215.218392,0.00021189,2]
[364931643,1749313841237,-440.0,0.00021189,2]
[364931644,1749313841246,-215.218392,0.00021189,2]
[364931645,1749313841255,-422.38346665,0.00021189,2]
[364931647,1749313841354,-17.61653335,0.00021189,2]
[364931648,1749313841364,-459.62327934,0.00021189,2]
[364931649,1749313841373,-274.59072413,0.00021189,2]
[364931650,1749313841384,-157.32052508,0.00021189,2]
[364931651,1749313841394,-430.0,0.00021189,2]
[364931652,1749313841404,-268.07947492,0.00021189,2]
[364931653,1749313841416,-171.92052508,0.00021189,2]
[364931654,1749313841544,-202.36741921,0.00021189,2]
[364931655,1749313841559,-237.63258079,0.00021189,2]
[364931656,1749313841568,-100.27702702,0.00021189,2]
[364931657,1749313841585,-339.72297298,0.00021189,2]
[364931658,1749313841595,-151.0,0.00021189,2]
[364931659,1749313841605,-207.57689812,0.00021189,2]
[364931672,1749313846299,-172.65687875,0.00020391,2]
[364931673,1749313846308,-142.87415669,0.00021176,2]
[364931674,1749313846321,-297.12584331,0.00021176,2]
[364931675,1749313846330,-232.42310188,0.00021189,2]
[364931676,1749313846340,-440.0,0.00021189,2]
[364931677,1749313846350,-440.0,0.00021189,2]
[364931678,1749313846360,-440.0,0.00021189,2]
[364931679,1749313846371,-414.46421793,0.00021189,2]
[364931680,1749313846381,-430.0,0.00021189,2]
[364931681,1749313846391,-430.0,0.00021189,2]
[364931682,1749313846400,-430.0,0.00021189,2]
[364931683,1749313846411,-430.0,0.00021189,2]
[364931684,1749313846421,-440.0,0.00021189,2]
[364931685,1749313846431,-416.33006213,0.00021189,2]
[364931686,1749313846440,-440.0,0.00021189,2]
[364931687,1749313846450,-440.0,0.00021189,2]
[364931688,1749313846462,-423.70980898,0.00021189,2]
[364931689,1749313846472,-362.4800493,0.00021189,2]
[364931690,1749313846482,-430.0,0.00021189,2]